fUSD/lending_fUSD_20240823
["ID","MTS","AMOUNT","RATE_DAILY","PERIOD"]
[335699916,1724445047437,-388.23479391,0.00016997,2]
[335699918,1724445047446,-200.0,0.00017,4]
[335699920,1724445047455,-500.0,0.00017,2]
[335699922,1724445047464,-500.0,0.00017,2]
[335699924,1724445047473,-500.0,0.00017,2]
[335699926,1724445047482,-500.0,0.00017,2]
[335699928,1724445047491,-500.0,0.00017,2]
[335699930,1724445047500,-500.0,0.00017,2]
[335699932,1724445047509,-500.0,0.00017,2]
[335699933,1724445047517,-500.0,0.00017,2]
[335699935,1724445047526,-500.0,0.00017,2]
[335699937,1724445047535,-500.0,0.00017,2]
[335699939,1724445047545,-197.41,0.00017,2]
[335699941,1724445047554,-500.0,0.00017,2]
[335699943,1724445047563,-500.0,0.00017,2]
[335699945,1724445047572,-500.0,0.00017,2]
[335699947,1724445047581,-500.0,0.00017,2]
[335699949,1724445047590,-500.0,0.00017,2]
[335699951,1724445047599,-500.0,0.00017,2]
[335699953,1724445047608,-500.0,0.00017,2]
[335699955,1724445047617,-500.0,0.00017,2]
[335699957,1724445047626,-500.0,0.00017,2]
[335699958,1724445047635,-500.0,0.00017,2]
[335699960,1724445047643,-500.0,0.00017,2]
[335699962,1724445047653,-500.0,0.00017,2]
[335699964,1724445047661,-500.0,0.00017,2]
[335699966,1724445047670,-500.0,0.00017,2]
[335699968,1724445047679,-500.0,0.00017,2]
[335699970,1724445047687,-500.0,0.00017,2]
[335699972,1724445047696,-500.0,0.00017,2]
[335699974,1724445047705,-500.0,0.00017,2]
[335699976,1724445047714,-101.42460049,0.00017,2]
[335699978,1724445047725,-359.82502915,0.00017,2]
[335699980,1724445047736,-38.75037036,0.00017,2]
[335699981,1724445047745,-383.94825877,0.00017,2]
[335700042,1724445055475,197.082405,0.00025,81]
[335700049,1724445193433,1000.0,0.00027,120]
[335700050,1724445193853,1000.0,0.00027,120]
[335700051,1724445215527,500.0,0.00027,120]
[335700059,1724445655349,1050.0,0.0001,2]
[335700060,1724445702021,1051.05102404,0.0001,2]
[335700061,1724445713615,170.66525033,0.0001,2]
[335700062,1724445718352,416.00901907,0.0001,2]
[335700063,1724445728352,170.66525033,0.0001,2]
[335700064,1724445740820,289.95309064,0.0001,2]
[335700065,1724445760212,485.15804996,0.0001,2]
[335700066,1724445766112,162.85453106,0.0001,2]
[335700067,1724445793506,1000.0,0.00026849,120]
[335700068,1724445793866,1000.0,0.00026849,120]
[335700069,1724445815041,500.0,0.00026271,120]
[335700070,1724445843864,800.0,0.00026877,120]
[335700071,1724445857057,1000.0,0.00027,120]
[335700072,1724445863594,1000.0,0.00027,120]
[335700073,1724445870240,1000.0,0.00027,120]
[335700074,1724445876985,1000.0,0.00027,120]
[335700075,1724445884061,1000.0,0.00027,120]
[335700076,1724445890594,1000.0,0.00027,120]
[335700077,1724445896805,1000.0,0.00027,120]
[335700078,1724445903951,1000.0,0.00027,120]
[335700079,1724445914728,1000.0,0.00027,120]
[335700080,1724445924454,1000.0,0.00027,120]
[335700081,1724445932052,1000.0,0.00027,120]
[335700082,1724445938585,1000.0,0.00027,120]
[335700083,1724445946377,1000.0,0.00027,120]
[335700084,1724445953541,1000.0,0.00027,120]
[335700085,1724445960333,1000.0,0.00027,120]
[335700086,1724445984373,3000.0,0.00027,120]
[335700087,1724446004149,1000.0,0.00027,120]
[335700088,1724446010695,1000.0,0.00027,120]
[335700090,1724446021895,1000.0,0.00027,120]
[335700094,1724446029963,1000.0,0.00027,120]
[335700096,1724446039048,1000.0,0.00027,120]
[335700097,1724446048366,1000.0,0.00027,120]
[335700104,1724446067007,1640.69983675,0.00010009,2]
[335700105,1724446074871,3000.0,0.00027,120]
[335700106,1724446079719,3000.0,0.00027,120]
[335700107,1724446082015,3000.0,0.00027,120]
[335700108,1724446084622,3000.0,0.00027,120]
[335700109,1724446086153,3000.0,0.00027,120]
[335700110,1724446098602,1000.0,0.00027,120]
[335700111,1724446101106,1000.0,0.00027,120]
[335700112,1724446108192,484.99875932,0.00010009,2]
[335700113,1724446130063,737.9,0.00027,120]
[335700115,1724446148496,1296.91763092,0.00010009,2]
[335700116,1724446151572,309.36943428,0.00010009,2]
[335700119,1724446175725,196.93237836,0.00010009,2]
[335700120,1724446177671,159.60847032,0.00010009,2]
[335700121,1724446190738,328.18367674,0.00010009,2]
[335700130,1724446210367,484.47147914,0.00010009,2]
[335700149,1724446232307,-155.0,0.00010097,2]
[335700150,1724446232316,-164.16456596,0.00010097,2]
[335700151,1724446232326,-238.93509164,0.00010097,2]
[335700152,1724446232336,-500.0,0.00010374,2]
[335700153,1724446232344,-500.0,0.00010383,2]
[335700154,1724446232354,-500.0,0.00010392,2]
[335700155,1724446232363,-500.0,0.00010401,2]
[335700156,1724446232373,-500.0,0.00010409,2]
[335700157,1724446232382,-500.0,0.00010418,2]
[335700158,1724446232392,-500.0,0.00010427,2]
[335700159,1724446232401,-225.7549174,0.00010436,2]
[335700160,1724446232413,-274.2450826,0.00010436,2]
[335700161,1724446232423,-500.0,0.00010445,2]
[335700162,1724446232432,-157.3450824,0.00010453,2]
[335700163,1724446232443,-342.6549176,0.00010453,2]
[335700164,1724446232452,-72.56599415,0.00010453,2]
[335700165,1724446232463,-792.61691657,0.00010453,2]
[335700166,1724446232479,-396.48017172,0.00010453,2]
[335700167,1724446232491,-222.39691756,0.00010453,2]
[335700168,1724446232501,-228.32330275,0.00010462,2]
[335700169,1724446232541,-271.67669725,0.00010462,2]
[335700170,1724446232552,-300.0,0.0001047,2]
[335700171,1724446232561,-500.0,0.00010471,2]
[335700172,1724446232571,-500.0,0.0001048,2]
[335700173,1724446232580,-500.0,0.00010489,2]
[335700174,1724446232597,-133.02772649,0.00010497,2]
[335700175,1724446232613,-366.97227351,0.00010497,2]
[335700176,1724446232625,-500.0,0.00010506,2]
[335700177,1724446232641,-500.0,0.00010515,2]
[335700178,1724446232650,-175.80882943,0.00010524,2]
[335700179,1724446232663,-324.19117057,0.00010524,2]
[335700180,1724446232674,-500.0,0.00010533,2]
[335700181,1724446232685,-500.0,0.00010541,2]
[335700182,1724446232700,-500.0,0.0001055,2]
[335700183,1724446232710,-499.99,0.0001055,2]
[335700184,1724446232719,-500.0,0.00010559,2]
[335700185,1724446232728,-184.80882943,0.00010568,2]
[335700186,1724446232740,-315.19117057,0.00010568,2]
[335700187,1724446232749,-153.83289209,0.00010577,2]
[335700188,1724446232765,-346.16710791,0.00010577,2]
[335700189,1724446232774,-500.0,0.00010585,2]
[335700190,1724446232785,-500.0,0.00010594,2]
[335700191,1724446232796,-296.32,0.00010651,2]
[335700192,1724446232806,-527.19740296,0.00010852,2]
[335700193,1724446232816,-159.9,0.00010959,2]
[335700194,1724446232827,-160.75,0.00010959,2]
[335700195,1724446232836,-855.69,0.00011,2]
[335700196,1724446232845,-216.10925183,0.0001104,2]
[335700197,1724446232855,-216.10925183,0.0001104,2]
[335700198,1724446232872,-813.20298547,0.00011047,2]
[335700199,1724446232891,-1516.20577799,0.00011047,2]
[335700200,1724446232900,-2669.83732712,0.0001105,3]
[335700201,1724446232912,-6489.9684291,0.0001105,3]
[335700202,1724446232923,-1763.04968515,0.0001105,3]
[335700203,1724446232935,-2063.08810195,0.0001105,3]
[335700215,1724446238357,-184.80311079,0.00011049,2]
[335700216,1724446238368,-500.0,0.00011049,2]
[335700217,1724446238378,-500.0,0.00011049,2]
[335700218,1724446238388,-197.85421084,0.00011049,2]
[335700219,1724446238397,-15154.15904823,0.0001105,3]
[335700220,1724446238409,-90113.45243512,0.0001105,3]
[335700221,1724446238425,-112305.22830903,0.0001105,3]
[335700222,1724446238436,-3791.46814228,0.0001105,3]
[335700223,1724446238522,-2216.68024884,0.0001105,3]
[335700224,1724446238579,-1197.7017767,0.0001105,3]
[335700294,1724446240474,-5734.8,0.0001105,3]
[335700295,1724446240638,-370.04594969,0.0001105,3]
[335700296,1724446240650,-344.5,0.0001105,3]
[335700302,1724446243493,-3186.11118224,0.0001105,3]
[335700303,1724446243504,-689.15000001,0.0001105,3]
[335700359,1724446246308,-3186.4,0.0001105,3]
[335700360,1724446246320,-689.47500001,0.0001105,3]
[335700361,1724446246331,-6508.19025592,0.0001105,3]
[335700362,1724446246342,-11649.77714005,0.0001105,3]
[335700363,1724446246354,-276.22967705,0.0001105,3]
[335700364,1724446246374,-500.0,0.00010365,2]
[335700365,1724446246383,-293.5826936,0.0001105,3]
[335700366,1724446246394,-36588.14643207,0.0001105,3]
[335700368,1724446395298,500.0,0.00026271,120]
[335700369,1724446445090,800.0,0.00026877,120]
[335700370,1724446516836,300.72,9.193e-05,2]
[335700374,1724446688401,749.09232054,0.00010009,2]
[335700375,1724446711662,228.65,9.867e-05,2]
[335700376,1724446901085,23900.0,9.661e-05,2]
[335700377,1724446998727,500.0,0.00026271,120]
[335700378,1724447022771,5259.81589891,9.733e-05,2]
[335700379,1724447022796,1713.57410109,9.733e-05,2]
[335700380,1724447025481,285.68,8.219e-05,2]
[335700381,1724447064459,250.0,9.673e-05,2]
[335700382,1724447116910,323.66123893,9.962e-05,2]
[335700383,1724447145722,3167.19,9.663e-05,2]
[335700384,1724447171702,350.53,9.651e-05,2]
[335700458,1724447262062,1000.0,9.649e-05,2]
[335700484,1724447431482,-500.0,0.00010145,2]
[335700485,1724447431492,-500.0,0.00010154,2]
[335700486,1724447431501,-500.0,0.00010163,2]
[335700487,1724447431510,-500.0,0.00010172,2]
[335700488,1724447431520,-500.0,0.00010181,2]
[335700489,1724447431529,-500.0,0.00010189,2]
[335700490,1724447431538,-500.0,0.00010198,2]
[335700491,1724447431547,-141.40814063,0.00010207,2]
[335700492,1724447431558,-325.89,0.00010207,2]
[335700493,1724447431573,-32.70185937,0.00010207,2]
[335700494,1724447431582,-500.0,0.00010216,2]
[335700495,1724447431591,-500.0,0.00010225,2]
[335700496,1724447431600,-499.99,0.00010225,2]
[335700497,1724447431610,-500.0,0.00010233,2]
[335700498,1724447431620,-500.0,0.00010242,2]
[335700499,1724447431629,-500.0,0.00010251,2]
[335700500,1724447431638,-500.0,0.0001026,2]
[335700501,1724447431647,-500.0,0.00010269,2]
[335700502,1724447431656,-500.0,0.00010277,2]
[335700503,1724447431666,-500.0,0.00010286,2]
[335700504,1724447431676,-500.0,0.00010295,2]
[335700505,1724447431685,-300.0,0.00010299,2]
[335700506,1724447431694,-6027.38496624,0.00010301,2]
[335700507,1724447431703,-500.0,0.00010304,2]
[335700509,1724447431712,-500.0,0.00010313,2]
[335700511,1724447431722,-500.0,0.00010321,2]
[335700513,1724447431731,-500.0,0.0001033,2]
[335700514,1724447431739,-500.0,0.00010339,2]
[335700516,1724447431748,-500.0,0.00010348,2]
[335700518,1724447431758,-500.0,0.00010357,2]
[335700520,1724447431767,-150.0,0.00010357,2]
[335700521,1724447431776,-200.0,0.000104,3]
[335700522,1724447431785,-285.68,0.00010458,2]
[335700523,1724447431794,-2077.68824439,0.00010471,2]
[335700524,1724447431806,-955.84194083,0.00010471,2]
[335700525,1724447431815,-160.47327359,0.000105,3]
[335700531,1724447437674,-339.52672641,0.000105,3]
[335700532,1724447437683,-66.62070642,0.00010505,2]
[335700533,1724447437783,-197.69617944,0.00010505,2]
[335700534,1724447437792,-160.00770904,0.00010566,2]
[335700535,1724447437802,-577.28603568,0.000106,3]
[335700573,1724447439588,-222.71396432,0.000106,3]
[335700574,1724447439598,-366.23688234,0.000107,3]
[335700575,1724447439862,-733.76311766,0.000107,3]
[335700576,1724447439874,-26.62759084,0.00010799,2]
[335700602,1724447442531,-500.0,0.00010137,2]
[335700603,1724447442540,-351.90336111,0.00010699,2]
[335700604,1724447442551,-1761.72413247,0.00010699,2]
[335700605,1724447442561,-725.73422227,0.00010799,2]
[335700606,1724447442585,-462.93662158,0.00010799,2]
[335700607,1724447442594,-1400.0,0.000108,3]
[335700608,1724447442604,-1000.0,0.00010855,2]
[335700609,1724447442613,-350.53,0.00010857,2]
[335700610,1724447442622,-653.64489815,0.00010861,2]
[335700611,1724447442631,-155.0,0.00010888,2]
[335700612,1724447442640,-298.09256283,0.00010888,2]
[335700613,1724447442649,-454.75953035,0.0001089,2]
[335700614,1724447442658,-155.0,0.00010899,2]
[335700615,1724447442667,-200.0,0.000109,3]
[335700616,1724447442677,-1656.41152646,0.0001094,2]
[335700617,1724447442686,-960.36508621,0.00010949,2]
[335700618,1724447442695,-347.8876,0.0001095,2]
[335700619,1724447442704,-158.38,0.00010959,2]
[335700620,1724447442713,-197.30242484,0.00010979,2]
[335700621,1724447442722,-241.94907099,0.00010979,2]
[335700622,1724447442731,-597.18564672,0.00010979,2]
[335700623,1724447442740,-320.30056243,0.00010979,2]
[335700624,1724447442749,-309.19344296,0.00010989,2]
[335700625,1724447442759,-470.39403409,0.0001099,2]
[335700626,1724447442768,-250.0,0.00011,2]
[335700627,1724447442778,-1052.18746683,0.00011,2]
[335700628,1724447442787,-42.8578914,0.00011,2]
[335700629,1724447442798,-684.4821086,0.00011,2]
[335700630,1724447442807,-291.0283222,0.00011027,2]
[335700632,1724447442816,-594.10224707,0.00011027,2]
[335700634,1724447442825,-175.97232213,0.00011049,2]
[335700636,1724447442837,-447.46876843,0.00011049,2]
[335700638,1724447442846,-67.49575094,0.00011049,2]
[335700640,1724447442856,-432.50424906,0.00011049,2]
[335700642,1724447442865,-500.0,0.00011049,2]
[335700662,1724447443041,-500.0,0.00011049,2]
[335700664,1724447443052,-297.86,0.00011049,2]
[335700666,1724447443062,-155.92,0.00011049,2]
[335700667,1724447443072,-500.0,0.00011049,2]
[335700669,1724447443081,-500.0,0.00011049,2]
[335700671,1724447443090,-160.48,0.00011049,2]
[335700673,1724447443101,-339.07,0.00011049,2]
[335700675,1724447443110,-500.0,0.00011049,2]
[335700677,1724447443119,-625.3,0.00011049,2]
[335700679,1724447443131,-500.0,0.00011049,2]
[335700681,1724447443141,-500.0,0.00011049,2]
[335700683,1724447443149,-500.0,0.00011049,2]
[335700685,1724447443158,-500.0,0.00011049,2]
[335700687,1724447443167,-500.0,0.00011049,2]
[335700689,1724447443176,-500.0,0.00011049,2]
[335700691,1724447443185,-167.32616657,0.00011049,2]
[335700692,1724447443194,-500.0,0.00011049,2]
[335700694,1724447443203,-500.0,0.00011049,2]
[335700696,1724447443211,-500.0,0.00011049,2]
[335700698,1724447443221,-500.0,0.00011049,2]
[335700700,1724447443230,-500.0,0.00011049,2]
[335700702,1724447443239,-500.0,0.00011049,2]
[335700704,1724447443248,-500.0,0.00011049,2]
[335700706,1724447443259,-520.22732487,0.00011049,2]
[335700708,1724447443269,-646.44,0.00011049,2]
[335700710,1724447443278,-27729.46753324,0.0001105,3]
[335700716,1724447445381,-1734.84626364,0.0001105,3]
[335700717,1724447445441,-747.40697802,0.0001105,3]
[335700718,1724447445452,-505.14,0.0001105,3]
[335700719,1724447445464,-292.064,0.0001105,3]
[335700720,1724447445613,-1835.2222897,0.0001105,3]
[335700721,1724447445624,-659.075,0.0001105,3]
[335700722,1724447445636,-1834.12245667,0.0001105,3]
[335700723,1724447445647,-6378.2,0.0001105,3]
[335700724,1724447445658,-2926.24615033,0.0001105,3]
[335700725,1724447445670,-571.96086196,0.0001105,3]
[335700744,1724447457783,1050.0,0.0001,2]
[335700745,1724447565666,309.33153452,0.00025,90]
[335700746,1724447566479,233.58377266,0.0001,2]
[335700747,1724447575898,1268.93157185,0.0001,2]
[335700748,1724447595962,500.0,0.00024932,120]
[335700749,1724447603027,309.33153452,0.00025,90]
[335700750,1724447609128,693.68338973,0.0001,2]
[335700751,1724447620123,20392.66258053,0.0001,2]
[335700752,1724447634284,499.97286808,0.0001,2]
[335700753,1724447638906,5664.91,0.00027,120]
[335700754,1724447664231,3220.88521436,0.0001,2]
[335700755,1724447689100,309.33153452,0.00025,90]
[335700756,1724447731714,16250.27322581,0.0001,2]
[335700757,1724447761525,303.93,8.267e-05,2]
[335700759,1724447802049,309.33153452,0.00025,90]
[335700760,1724447814232,3073.03961073,8.267e-05,2]
[335700761,1724447840111,20410.02713101,8.267e-05,2]
[335700762,1724447857891,1269.59062795,8.267e-05,2]
[335700763,1724447922238,3070.34679039,8.267e-05,2]
[335700764,1724447935518,240.31032969,0.00010009,2]
[335700765,1724447943963,20410.02713101,8.267e-05,2]
[335700766,1724447957914,1269.59062795,8.267e-05,2]
[335700767,1724447961345,211.0133722,0.00010009,2]
[335700768,1724447982541,230.34140124,0.00010009,2]
[335700770,1724448028179,20410.02713101,0.00010009,2]
[335700772,1724448041249,3072.50118676,0.00010009,2]
[335700774,1724448053112,309.33153452,0.00025,90]
[335700776,1724448057918,1269.59062795,0.00010009,2]
[335700778,1724448065575,23900.0,9.767e-05,2]
[335700785,1724448106266,16250.27322581,0.00010009,2]
[335700787,1724448126846,500.0,0.00010005,2]
[335700788,1724448127122,19408.96597175,0.00010009,2]
[335700792,1724448172735,500.0,9.996e-05,2]
[335700793,1724448185244,3067.65326956,0.00010009,2]
[335700794,1724448198720,500.0,0.00024932,120]
[335700797,1724448218586,500.0,9.987e-05,2]
[335700798,1724448222226,250.0,9.687e-05,2]
[335700799,1724448229315,16250.27322581,0.00010009,2]
[335700811,1724448264480,500.0,9.978e-05,2]
[335700812,1724448273338,786.8,9.705e-05,2]
[335700813,1724448288434,1266.95440355,9.978e-05,2]
[335700814,1724448310275,500.0,9.969e-05,2]
[335700815,1724448329528,600.0,9.698e-05,2]
[335700878,1724448338191,317.88,8.219e-05,2]
[335700879,1724448338269,16250.27322581,9.978e-05,2]
[335700882,1724448355078,309.33153452,0.00025,90]
[335700883,1724448356136,500.0,9.961e-05,2]
[335700888,1724448376647,249.27,9.734e-05,2]
[335700890,1724448401950,500.0,9.952e-05,2]
[335700891,1724448403028,3509.85,9.737e-05,2]
[335700892,1724448420111,309.33153452,0.00025,90]
[335700893,1724448424471,150.0,9.937e-05,2]
[335700898,1724448429286,1803.03207516,9.734e-05,2]
[335700923,1724448438214,205.0,9.8e-05,2]
[335701054,1724448447974,500.0,9.943e-05,2]
[335701071,1724448459079,184.6489582,0.00025,90]
[335701072,1724448477540,238.14,9.602e-05,2]
[335701073,1724448479698,640.63258296,0.0001,2]
[335701110,1724448586002,1192.2078141,0.00010009,2]
[335701132,1724448631547,-500.0,0.00010013,2]
[335701133,1724448631559,-460.0,0.0001002,2]
[335701138,1724448631674,-621.0,0.0001002,2]
[335701139,1724448631685,-500.0,0.00010022,2]
[335701140,1724448631695,-500.0,0.00010031,2]
[335701141,1724448631705,-500.0,0.0001004,2]
[335701142,1724448631715,-500.0,0.00010049,2]
[335701143,1724448631727,-500.0,0.00010057,2]
[335701144,1724448631738,-500.0,0.00010066,2]
[335701145,1724448631748,-500.0,0.00010075,2]
[335701146,1724448631759,-500.0,0.00010084,2]
[335701147,1724448631769,-150.99,0.00010084,2]
[335701148,1724448631779,-499.99,0.00010084,2]
[335701149,1724448631790,-500.0,0.00010093,2]
[335701150,1724448631800,-500.0,0.00010101,2]
[335701151,1724448631810,-300.0,0.00010109,2]
[335701152,1724448631821,-500.0,0.0001011,2]
[335701153,1724448631831,-500.0,0.00010119,2]
[335701154,1724448631841,-500.0,0.00010128,2]
[335701155,1724448631852,-400.0,0.00010185,2]
[335701156,1724448631863,-189.68,0.00010298,2]
[335701157,1724448631873,-317.88,0.0001046,2]
[335701158,1724448631892,-1511.33349361,0.00010699,2]
[335701159,1724448631903,-723.7000812,0.00010713,2]
[335701160,1724448631915,-1245.27175311,0.00010713,2]
[335701161,1724448631924,-886.3381,0.00010859,2]
[335701162,1724448631935,-30198.69214516,0.0001088,2]
[335701163,1724448631946,-419.42427568,0.00010888,2]
[335701164,1724448631956,-150.0,0.00010888,2]
[335701165,1724448631967,-687.59202699,0.0001089,2]
[335701166,1724448631977,-155.0,0.0001089,2]
[335701167,1724448631988,-960.36508621,0.00010899,2]
[335701168,1724448631998,-9498.70196058,0.00010899,2]
[335701169,1724448632008,-426.79,0.000109,2]
[335701170,1724448632018,-300.0,0.000109,2]
[335701171,1724448632028,-1194.37129344,0.000109,2]
[335701172,1724448632038,-197.30242484,0.000109,2]
[335701173,1724448632048,-201.78608962,0.000109,2]
[335701174,1724448632059,-600.0,0.00010911,2]
[335701175,1724448632070,-158.93346,0.0001094,2]
[335701176,1724448632080,-158.93347,0.0001094,2]
[335701177,1724448632090,-155.0,0.00010949,2]
[335701178,1724448632100,-3520.9278,0.0001095,2]
[335701179,1724448632110,-475.1075,0.0001095,2]
[335701180,1724448632120,-59185.5932,0.0001095,2]
[335701181,1724448632130,-61826.1902,0.0001095,2]
[335701182,1724448632144,-3028.0524,0.0001095,2]
[335701183,1724448632155,-151.81,0.00010959,2]
[335701184,1724448632165,-1500.0,0.00010959,2]
[335701185,1724448632175,-150.0,0.00010959,2]
[335701186,1724448632184,-250.0,0.00010959,2]
[335701187,1724448632194,-152.71,0.00010959,2]
[335701188,1724448632203,-893.38,0.00010959,2]
[335701189,1724448632214,-4249.61,0.00010959,2]
[335701190,1724448632223,-200.0,0.00010973,2]
[335701191,1724448632233,-200.0,0.00010973,2]
[335701192,1724448632244,-174.29338501,0.00010973,2]
[335701193,1724448632253,-454.75953035,0.00010979,2]
[335701194,1724448632263,-527.19740296,0.00010979,2]
[335701195,1724448632273,-19751.36224408,0.00010989,2]
[335701196,1724448632283,-509.11573653,0.00010997,2]
[335701197,1724448632293,-475.68,0.00010999,2]
[335701198,1724448632303,-500.0,0.00010999,2]
[335701199,1724448632313,-500.0,0.00010999,2]
[335701200,1724448632323,-481.9558455,0.00010999,2]
[335701201,1724448632333,-314.95451038,0.00010999,2]
[335701202,1724448632344,-500.0,0.00010999,2]
[335701203,1724448632353,-500.0,0.00010999,2]
[335701204,1724448632363,-500.0,0.00010999,2]
[335701205,1724448632373,-500.0,0.00010999,2]
[335701206,1724448632385,-519.40523966,0.00010999,2]
[335701207,1724448632395,-183.23314245,0.00010999,2]
[335701208,1724448632406,-500.0,0.00010999,2]
[335701209,1724448632417,-500.0,0.00010999,2]
[335701210,1724448632430,-500.0,0.00010999,2]
[335701211,1724448632441,-500.0,0.00010999,2]
[335701212,1724448632450,-500.0,0.00010999,2]
[335701213,1724448632459,-500.0,0.00010999,2]
[335701214,1724448632471,-500.0,0.00010999,2]
[335701215,1724448632481,-500.0,0.00010999,2]
[335701216,1724448632492,-500.0,0.00010999,2]
[335701217,1724448632503,-500.0,0.00010999,2]
[335701218,1724448632513,-641.29875849,0.00010999,2]
[335701219,1724448632522,-500.0,0.00010999,2]
[335701220,1724448632532,-500.0,0.00010999,2]
[335701221,1724448632831,-500.0,0.00010999,2]
[335701222,1724448632847,-500.0,0.00010999,2]
[335701223,1724448632856,-500.0,0.00010999,2]
[335701224,1724448632866,-500.0,0.00010999,2]
[335701225,1724448632876,-500.0,0.00010999,2]
[335701226,1724448632887,-500.0,0.00010999,2]
[335701227,1724448632896,-500.0,0.00010999,2]
[335701228,1724448632905,-500.0,0.00010999,2]
[335701229,1724448632915,-500.0,0.00010999,2]
[335701230,1724448632924,-500.0,0.00010999,2]
[335701231,1724448632934,-500.0,0.00010999,2]
[335701232,1724448632947,-500.0,0.00010999,2]
[335701233,1724448632957,-500.0,0.00010999,2]
[335701234,1724448632967,-500.0,0.00010999,2]
[335701235,1724448632976,-1009.23724668,0.00011,2]
[335701236,1724448632985,-10137.85989489,0.00011,2]
[335701237,1724448633024,-255.5570155,0.00011,2]
[335701255,1724448637615,-155.0,0.00010899,2]
[335701256,1724448637624,-320.30056243,0.000109,2]
[335701257,1724448637635,-141.37910105,0.00011,2]
[335701258,1724448637646,-1317.01174027,0.00011,2]
[335701259,1724448637674,-47938.46225822,0.00011,2]
[335701260,1724448637685,-3936.04611518,0.00011,2]
[335701261,1724448637697,-313.147835,0.00011,2]
[335701262,1724448637794,-8136.69406932,0.00011,2]
[335701263,1724448637854,-2548065.45047932,0.00011,2]
[335701264,1724448637865,-407964.5809444,0.00011,2]
[335701305,1724448639752,-350.30677296,0.00010822,2]
[335701306,1724448639761,-1571.07322704,0.00011,2]
[335701307,1724448639773,-840.10442546,0.00011,2]
[335701308,1724448639872,-7659.00000018,0.00011,2]
[335701309,1724448639934,-221993.71309642,0.00011,2]
[335701310,1724448639944,-8657567.98064055,0.00011,2]
[335701311,1724448639955,-7083.9653501,0.00011,2]
[335701312,1724448640001,-199496.60798903,0.00011,2]
[335701313,1724448640117,-313.78780763,0.00011,2]
[335701314,1724448640182,-416.49,0.00011,2]
[335701315,1724448640193,-257.884,0.00011,2]
[335701316,1724448640204,-937.88946601,0.00011,2]
[335701317,1724448640215,-385.3638717,0.00011,2]
[335701350,1724448642608,-11154.19311522,0.00011,2]
[335701352,1724448642619,-11454.00752807,0.00011,2]
[335701354,1724448642630,-834.92804833,0.00011,2]
[335701356,1724448642641,-296.95776435,0.00011,2]
[335701358,1724448642652,-566.62860673,0.00011,2]
[335701360,1724448642663,-300.0,0.00011,2]
[335701361,1724448642674,-317.58278286,0.00011,2]
[335701364,1724448642684,-18264.91042152,0.00011,2]
[335701366,1724448642695,-419.87653924,0.00011,2]
[335701368,1724448642710,-7059.3,0.00011,2]
[335701378,1724448642799,-623.2797952,0.00011,2]
[335701391,1724448645734,-582.0566444,0.000109,2]
[335701392,1724448645744,-285.0733556,0.00011,2]
[335701393,1724448645798,-587.2050527,0.00011,2]
[335701394,1724448645810,-1502.556,0.00011,2]
[335701395,1724448645822,-279.6363521,0.00011,2]
[335701396,1724448645834,-1890.94645935,0.00011,2]
[335701397,1724448645863,-436.81,0.00011,2]